fUST/lending_fUST_20240701
["ID","MTS","AMOUNT","RATE_DAILY","PERIOD"]
[330785686,1719783043594,-526.78,0.00015571,2]
[330785687,1719783043603,-500.0,0.00015571,2]
[330785688,1719783043612,-763.6,0.00015571,2]
[330785689,1719783043622,-500.0,0.00015571,2]
[330785690,1719783043632,-500.0,0.00015571,2]
[330785691,1719783043641,-500.0,0.00015571,2]
[330785692,1719783043651,-500.0,0.00015571,2]
[330785694,1719783043659,-500.0,0.00015571,2]
[330785696,1719783043669,-500.0,0.00015571,2]
[330785698,1719783043679,-500.0,0.00015571,2]
[330785700,1719783043687,-500.0,0.00015571,2]
[330785702,1719783043696,-1175.41,0.00015571,2]
[330785703,1719783043710,-500.0,0.00015571,2]
[330785705,1719783043720,-8813.29,0.00015571,2]
[330785708,1719783043729,-500.0,0.00015571,2]
[330785709,1719783043738,-528.53,0.00015571,2]
[330785711,1719783043750,-500.0,0.00015571,2]
[330785713,1719783043759,-500.0,0.00015571,2]
[330785715,1719783043769,-1534.98,0.00015571,2]
[330785717,1719783043779,-500.0,0.00015571,2]
[330785719,1719783043791,-500.0,0.00015571,2]
[330785721,1719783043800,-724.22,0.00015571,2]
[330785723,1719783043810,-500.0,0.00015571,2]
[330785725,1719783043819,-576.9,0.00015571,2]
[330785727,1719783043828,-500.0,0.00015571,2]
[330785729,1719783043838,-500.0,0.00015571,2]
[330785731,1719783043847,-500.0,0.00015571,2]
[330785733,1719783043857,-500.0,0.00015571,2]
[330785735,1719783043866,-1768.01,0.00015571,2]
[330785737,1719783043875,-500.0,0.00015571,2]
[330785739,1719783043885,-500.0,0.00015571,2]
[330785741,1719783043895,-500.0,0.00015571,2]
[330785743,1719783043904,-560.12,0.00015571,2]
[330785745,1719783043913,-500.0,0.00015571,2]
[330785747,1719783043923,-1092.27,0.00015571,2]
[330785749,1719783043932,-1033.93,0.00015571,2]
[330785751,1719783043941,-500.0,0.00015571,2]
[330785753,1719783043951,-500.0,0.00015571,2]
[330785754,1719783043960,-500.0,0.00015571,2]
[330785756,1719783043969,-500.0,0.00015571,2]
[330785758,1719783043979,-500.0,0.00015571,2]
[330785761,1719783043988,-500.0,0.00015571,2]
[330785763,1719783044000,-1303.45,0.00015571,2]
[330785765,1719783044010,-500.0,0.00015571,2]
[330785766,1719783044023,-500.0,0.00015571,2]
[330785767,1719783044032,-500.0,0.00015571,2]
[330785768,1719783044041,-500.0,0.00015571,2]
[330785769,1719783044050,-835.17,0.00015571,2]
[330785770,1719783044060,-500.0,0.00015571,2]
[330785771,1719783044069,-737.45,0.00015571,2]
[330785772,1719783044078,-500.0,0.00015571,2]
[330785773,1719783044087,-500.0,0.00015571,2]
[330785774,1719783044096,-426.86121679,0.00015571,2]
[330785775,1719783044105,-500.0,0.00015571,2]
[330785776,1719783044114,-500.0,0.00015571,2]
[330785777,1719783044123,-500.0,0.00015571,2]
[330785778,1719783044132,-500.0,0.00015571,2]
[330785779,1719783044141,-681.47,0.00015571,2]
[330785780,1719783044149,-500.0,0.00015571,2]
[330785781,1719783044158,-500.0,0.00015571,2]
[330785782,1719783044167,-500.0,0.00015571,2]
[330785783,1719783044177,-688.77,0.00015571,2]
[330785784,1719783044186,-876.8,0.00015571,2]
[330785785,1719783044195,-500.0,0.00015571,2]
[330785786,1719783044204,-500.0,0.00015571,2]
[330785787,1719783044213,-500.0,0.00015571,2]
[330785788,1719783044222,-500.0,0.00015571,2]
[330785789,1719783044231,-680.42,0.00015571,2]
[330785790,1719783044240,-500.0,0.00015571,2]
[330785792,1719783044252,-1105.12,0.00015571,2]
[330785794,1719783044261,-500.0,0.00015571,2]
[330785796,1719783044272,-500.0,0.00015571,2]
[330785798,1719783044281,-500.0,0.00015571,2]
[330785800,1719783044290,-842.09,0.00015571,2]
[330785802,1719783044299,-500.0,0.00015571,2]
[330785804,1719783044308,-500.0,0.00015571,2]
[330785806,1719783044318,-500.0,0.00015571,2]
[330785808,1719783044327,-1191.28,0.00015571,2]
[330785809,1719783044337,-500.0,0.00015571,2]
[330785811,1719783044346,-500.0,0.00015571,2]
[330785813,1719783044355,-500.0,0.00015571,2]
[330785815,1719783044365,-500.0,0.00015571,2]
[330785817,1719783044374,-500.0,0.00015571,2]
[330785819,1719783044384,-500.0,0.00015571,2]
[330785821,1719783044393,-500.0,0.00015571,2]
[330785823,1719783044403,-500.0,0.00015571,2]
[330785825,1719783044412,-500.0,0.00015571,2]
[330785827,1719783044422,-500.0,0.00015571,2]
[330785829,1719783044431,-500.0,0.00015571,2]
[330785831,1719783044440,-500.0,0.00015571,2]
[330785833,1719783044450,-11644.51,0.00015572,2]
[330785835,1719783044459,-500.0,0.00015572,2]
[330785837,1719783044468,-500.0,0.00015573,2]
[330785838,1719783044478,-500.0,0.00015573,2]
[330785840,1719783044487,-500.0,0.00015573,2]
[330785842,1719783044499,-500.0,0.00015573,2]
[330785844,1719783044507,-500.0,0.00015573,2]
[330785846,1719783044517,-500.0,0.00015573,2]
[330785848,1719783044528,-717.25,0.00015573,2]
[330785850,1719783044537,-500.0,0.00015573,2]
[330785852,1719783044547,-503.43450355,0.00015573,2]
[330785854,1719783044556,-512.32,0.00015573,2]
[330785855,1719783044565,-500.0,0.00015573,2]
[330785857,1719783044574,-500.0,0.00015573,2]
[330785859,1719783044584,-500.0,0.00015573,2]
[330785861,1719783044593,-825.11,0.00015573,2]
[330785863,1719783044603,-500.0,0.00015573,2]
[330785866,1719783044612,-500.0,0.00015573,2]
[330785867,1719783044622,-7035.4,0.00015574,2]
[330785869,1719783044631,-1385.89,0.00015574,2]
[330785871,1719783044640,-970.29,0.00015574,2]
[330785873,1719783044649,-11463.9,0.00015574,2]
[330785875,1719783044659,-988.87,0.00015574,2]
[330785877,1719783044668,-153.0,0.000156,2]
[330785879,1719783044677,-153.0,0.000156,2]
[330785881,1719783044687,-153.0,0.000156,2]
[330785883,1719783044697,-154.9309405,0.000156,2]
[330785885,1719783044710,-153.0,0.000156,2]
[330785887,1719783044719,-153.0,0.000156,2]
[330785889,1719783044729,-153.0,0.000156,2]
[330785891,1719783044738,-153.0,0.000156,2]
[330785893,1719783044752,-153.0,0.000156,2]
[330785895,1719783044761,-153.0,0.000156,2]
[330785897,1719783044771,-153.0,0.000156,2]
[330785899,1719783044780,-153.0,0.000156,2]
[330785901,1719783044793,-490.76095483,0.00015995,2]
[330785903,1719783044803,-150.0,0.00016059,2]
[330785905,1719783044812,-877.0,0.00016059,2]
[330785907,1719783044822,-5286.34479944,0.00016095,2]
[330785909,1719783044833,-500.0,0.00016117,2]
[330785911,1719783044842,-500.0,0.00016117,2]
[330785913,1719783044852,-3635.47,0.00016117,2]
[330785915,1719783044861,-3495.24,0.00016117,2]
[330785917,1719783044871,-1845.55,0.00016117,2]
[330785919,1719783044880,-1530.05,0.00016117,2]
[330785921,1719783044890,-500.0,0.00016117,2]
[330785923,1719783044900,-500.0,0.00016117,2]
[330785925,1719783044910,-500.0,0.00016117,2]
[330785927,1719783044920,-1644.28,0.00016117,2]
[330785929,1719783044930,-1571.28,0.00016117,2]
[330785940,1719783045030,-500.0,0.00016117,2]
[330785942,1719783045039,-14403.6,0.00016117,2]
[330785944,1719783045048,-1208.83,0.00016117,2]
[330785946,1719783045058,-5290.74,0.00016117,2]
[330785948,1719783045068,-605.15,0.00016117,2]
[330785950,1719783045078,-13425.39,0.00016117,2]
[330785952,1719783045087,-500.0,0.00016117,2]
[330785954,1719783045096,-731.64,0.00016117,2]
[330785956,1719783045105,-638.35,0.00016117,2]
[330785958,1719783045115,-1820.86,0.00016117,2]
[330785960,1719783045124,-500.0,0.00016117,2]
[330785962,1719783045134,-5933.57,0.00016117,2]
[330785964,1719783045145,-500.0,0.00016117,2]
[330785967,1719783045155,-1288.91,0.00016117,2]
[330785969,1719783045164,-844.32,0.00016117,2]
[330785971,1719783045173,-500.0,0.00016118,2]
[330785973,1719783045183,-500.0,0.00016118,2]
[330785975,1719783045192,-500.0,0.00016118,2]
[330785977,1719783045202,-500.0,0.00016118,2]
[330785979,1719783045211,-1299.91,0.00016118,2]
[330785980,1719783045221,-500.0,0.00016118,2]
[330785982,1719783045230,-500.0,0.00016118,2]
[330785984,1719783045239,-1640.19,0.00016118,2]
[330785986,1719783045249,-500.0,0.00016118,2]
[330785988,1719783045258,-500.0,0.00016118,2]
[330785990,1719783045267,-511.52,0.00016118,2]
[330785992,1719783045277,-1552.38,0.00016118,2]
[330785994,1719783045286,-500.0,0.00016118,2]
[330785996,1719783045295,-1917.77,0.00016118,2]
[330785998,1719783045304,-704.9,0.00016118,2]
[330786000,1719783045313,-1263.49,0.00016118,2]
[330786002,1719783045322,-500.0,0.00016118,2]
[330786004,1719783045331,-234.61,0.00016118,2]
[330786006,1719783045340,-500.0,0.00016118,2]
[330786008,1719783045349,-500.0,0.00016118,2]
[330786010,1719783045359,-500.0,0.00016118,2]
[330786012,1719783045368,-500.0,0.00016118,2]
[330786014,1719783045377,-569.13,0.00016118,2]
[330786016,1719783045387,-500.0,0.00016118,2]
[330786018,1719783045395,-500.0,0.00016118,2]
[330786020,1719783045405,-743.11,0.00016118,2]
[330786022,1719783045414,-613.62,0.00016118,2]
[330786024,1719783045423,-500.0,0.00016118,2]
[330786026,1719783045432,-625.02,0.00016118,2]
[330786028,1719783045441,-528.68,0.00016118,2]
[330786030,1719783045450,-500.0,0.00016118,2]
[330786032,1719783045459,-675.23,0.00016118,2]
[330786034,1719783045468,-500.0,0.00016118,2]
[330786036,1719783045477,-2091.26,0.00016118,2]
[330786038,1719783045486,-9227.19,0.00016118,2]
[330786040,1719783045497,-1341.68,0.00016118,2]
[330786042,1719783045506,-500.0,0.00016118,2]
[330786044,1719783045514,-3046.41,0.00016118,2]
[330786046,1719783045524,-594.69,0.00016118,2]
[330786048,1719783045533,-500.0,0.00016118,2]
[330786050,1719783045542,-715.47,0.00016118,2]
[330786052,1719783045551,-662.9,0.00016118,2]
[330786054,1719783045560,-1234.18,0.00016118,2]
[330786056,1719783045569,-500.0,0.00016118,2]
[330786057,1719783045578,-859.49,0.00016118,2]
[330786059,1719783045587,-500.0,0.00016118,2]
[330786061,1719783045596,-1472.78,0.00016118,2]
[330786063,1719783045606,-792.64,0.00016118,2]
[330786065,1719783045615,-500.0,0.00016118,2]
[330786067,1719783045624,-500.0,0.00016118,2]
[330786069,1719783045633,-500.0,0.00016118,2]
[330786071,1719783045642,-500.0,0.00016118,2]
[330786073,1719783045651,-1541.1,0.00016118,2]
[330786076,1719783045661,-500.0,0.00016118,2]
[330786077,1719783045670,-500.0,0.00016118,2]
[330786080,1719783045680,-757.71,0.00016118,2]
[330786081,1719783045689,-500.0,0.00016119,2]
[330786083,1719783045698,-500.0,0.00016119,2]
[330786085,1719783045712,-500.0,0.00016119,2]
[330786087,1719783045721,-500.0,0.00016119,2]
[330786089,1719783045730,-500.0,0.00016119,2]
[330786092,1719783045747,-2023.65,0.00016119,2]
[330786094,1719783045761,-500.0,0.00016119,2]
[330786096,1719783045771,-500.0,0.00016119,2]
[330786099,1719783045786,-656.15,0.00016119,2]
[330786101,1719783045795,-204.28154409,0.00016119,2]
[330786103,1719783045805,-611.98,0.00016119,2]
[330786105,1719783045815,-500.0,0.00016119,2]
[330786107,1719783045824,-500.0,0.00016119,2]
[330786109,1719783045834,-950.68,0.00016119,2]
[330786111,1719783045844,-500.0,0.00016119,2]
[330786113,1719783045854,-704.18,0.00016119,2]
[330786115,1719783045864,-500.0,0.00016119,2]
[330786117,1719783045875,-500.0,0.00016119,2]
[330786119,1719783045885,-526.78,0.00016119,2]
[330786121,1719783045895,-500.0,0.00016119,2]
[330786123,1719783045905,-763.6,0.00016119,2]
[330786125,1719783045918,-500.0,0.00016119,2]
[330786127,1719783045927,-500.0,0.00016119,2]
[330786130,1719783045937,-500.0,0.00016119,2]
[330786132,1719783045948,-500.0,0.00016119,2]
[330786134,1719783045957,-500.0,0.00016119,2]
[330786136,1719783045967,-500.0,0.00016119,2]
[330786138,1719783045977,-500.0,0.00016119,2]
[330786140,1719783045987,-500.0,0.00016119,2]
[330786142,1719783045997,-1175.41,0.00016119,2]
[330786144,1719783046006,-500.0,0.00016119,2]
[330786146,1719783046016,-500.0,0.00016119,2]
[330786148,1719783046026,-8813.29,0.00016119,2]
[330786150,1719783046036,-528.53,0.00016119,2]
[330786152,1719783046046,-500.0,0.00016119,2]
[330786154,1719783046055,-437.71036704,0.00016119,2]
[330786156,1719783046065,-1534.98,0.00016119,2]
[330786158,1719783046075,-500.0,0.00016119,2]
[330786161,1719783046086,-500.0,0.00016119,2]
[330786163,1719783046096,-724.22,0.00016119,2]
[330786165,1719783046106,-500.0,0.00016119,2]
[330786167,1719783046116,-576.9,0.00016119,2]
[330786169,1719783046125,-384.64325468,0.00016119,2]
[330786171,1719783046135,-86.67853881,0.00016119,2]
[330786246,1719783046846,-500.0,0.00015021,2]
[330786248,1719783046855,-1596.17,0.00015025,2]
[330786250,1719783046864,-654.31921787,0.00015196,2]
[330786252,1719783046873,-654.31921787,0.00015333,2]
[330786254,1719783046882,-1596.17,0.00015573,2]
[330786256,1719783046892,-413.32146119,0.00016119,2]
[330786258,1719783046901,-500.0,0.00016119,2]
[330786260,1719783046912,-500.0,0.00016119,2]
[330786262,1719783046922,-1768.01,0.00016119,2]
[330786264,1719783046931,-500.0,0.00016119,2]
[330786266,1719783046941,-500.0,0.00016119,2]
[330786268,1719783046950,-500.0,0.00016119,2]
[330786270,1719783046959,-560.12,0.00016119,2]
[330786272,1719783046969,-500.0,0.00016119,2]
[330786274,1719783046978,-1092.27,0.00016119,2]
[330786276,1719783046987,-1033.93,0.00016119,2]
[330786278,1719783046997,-500.0,0.00016119,2]
[330786280,1719783047006,-500.0,0.00016119,2]
[330786282,1719783047016,-500.0,0.00016119,2]
[330786284,1719783047028,-500.0,0.00016119,2]
[330786285,1719783047037,-500.0,0.00016119,2]
[330786286,1719783047047,-500.0,0.00016119,2]
[330786287,1719783047056,-1303.45,0.00016119,2]
[330786288,1719783047065,-500.0,0.00016119,2]
[330786290,1719783047074,-500.0,0.00016119,2]
[330786292,1719783047084,-500.0,0.00016119,2]
[330786293,1719783047093,-500.0,0.00016119,2]
[330786294,1719783047102,-835.17,0.00016119,2]
[330786295,1719783047112,-389.79158729,0.00016119,2]
[330786296,1719783047122,-737.45,0.00016119,2]
[330786297,1719783047131,-500.0,0.00016119,2]
[330786298,1719783047140,-569.48933944,0.00016119,2]
[330786299,1719783047149,-500.0,0.00016119,2]
[330786300,1719783047158,-350.59432219,0.00016119,2]
[330786301,1719783047167,-500.0,0.00016119,2]
[330786302,1719783047177,-681.47,0.00016119,2]
[330786303,1719783047186,-449.62292887,0.00016119,2]
[330786304,1719783047199,-500.0,0.00016119,2]
[330786305,1719783047208,-500.0,0.00016119,2]
[330786306,1719783047217,-688.77,0.00016119,2]
[330786307,1719783047227,-876.8,0.00016119,2]
[330786308,1719783047237,-578.47295228,0.00016119,2]
[330786309,1719783047250,-500.0,0.00016119,2]
[330786310,1719783047260,-500.0,0.00016119,2]
[330786311,1719783047270,-500.0,0.00016119,2]
[330786312,1719783047279,-680.42,0.00016119,2]
[330786313,1719783047288,-500.0,0.00016119,2]
[330786314,1719783047298,-1105.12,0.00016119,2]
[330786315,1719783047309,-500.0,0.00016119,2]
[330786316,1719783047320,-500.0,0.00016119,2]
[330786317,1719783047330,-500.0,0.00016119,2]
[330786318,1719783047339,-842.09,0.00016119,2]
[330786319,1719783047348,-500.0,0.00016119,2]
[330786320,1719783047359,-500.0,0.00016119,2]
[330786321,1719783047368,-500.0,0.00016119,2]
[330786322,1719783047378,-1191.28,0.00016119,2]
[330786323,1719783047387,-500.0,0.00016119,2]
[330786324,1719783047396,-500.0,0.00016119,2]
[330786325,1719783047406,-500.0,0.00016119,2]
[330786326,1719783047415,-500.0,0.00016119,2]
[330786327,1719783047425,-500.0,0.00016119,2]
[330786328,1719783047434,-500.0,0.00016119,2]
[330786329,1719783047446,-500.0,0.00016119,2]
[330786330,1719783047456,-500.0,0.00016119,2]
[330786331,1719783047465,-500.0,0.00016119,2]
[330786332,1719783047475,-500.0,0.00016119,2]
[330786333,1719783047484,-500.0,0.00016119,2]
[330786334,1719783047495,-500.0,0.00016119,2]
[330786335,1719783047504,-11644.51,0.0001612,2]
[330786336,1719783047514,-500.0,0.0001612,2]
[330786337,1719783047523,-500.0,0.00016121,2]
[330786338,1719783047532,-500.0,0.00016121,2]
[330786340,1719783047542,-500.0,0.00016121,2]
[330786342,1719783047551,-500.0,0.00016121,2]
[330786344,1719783047560,-717.25,0.00016121,2]
[330786345,1719783047570,-500.0,0.00016121,2]
[330786348,1719783047580,-512.32,0.00016121,2]
[330786350,1719783047590,-500.0,0.00016121,2]
[330786352,1719783047599,-290.82218958,0.00016121,2]
[330786354,1719783047608,-500.0,0.00016121,2]
[330786356,1719783047618,-825.11,0.00016121,2]
[330786358,1719783047627,-500.0,0.00016121,2]
[330786360,1719783047637,-500.0,0.00016121,2]
[330786362,1719783047646,-7035.4,0.00016122,2]
[330786364,1719783047655,-1385.89,0.00016122,2]
[330786366,1719783047664,-970.29,0.00016122,2]
[330786368,1719783047673,-293.26648,0.00016122,2]
[330786370,1719783047682,-151.0,0.00016122,2]
[330786372,1719783047692,-4024.4479025,0.00016122,2]
[330786374,1719783047708,-7439.4520975,0.00016122,2]
[330786376,1719783047719,-988.87,0.00016122,2]
[330786378,1719783047728,-151.0,0.00016125,2]
[330786380,1719783047737,-151.0,0.00016125,2]
[330786382,1719783047748,-223.191982,0.00016125,2]
[330786384,1719783047757,-223.191982,0.00016125,2]
[330786386,1719783047767,-1000.0,0.00016199,2]
[330786388,1719783047776,-1000.0,0.000162,2]
[330786390,1719783047788,-1000.0,0.00016205,2]
[330786393,1719783047799,-1000.0,0.00016231,2]
[330786395,1719783047809,-1000.0,0.00016233,2]
[330786397,1719783047818,-9505.42058523,0.00016254,2]
[330786445,1719783048596,-823.32,0.00015021,2]
[330786446,1719783048606,-601.87869073,0.00015021,2]
[330786447,1719783048616,-501.68662757,0.00015021,2]
[330786448,1719783048626,-654.31921787,0.0001547,2]
[330786449,1719783048636,-823.32,0.00015569,2]
[330786450,1719783048646,-823.32,0.00016117,2]
[330786451,1719783048655,-1596.17,0.00016121,2]
[330786452,1719783048666,-12916.40161812,0.00016254,2]
[330786453,1719783048675,-151.0,0.00016254,2]
[330786454,1719783048685,-26077.64019176,0.00016255,2]
[330786455,1719783048694,-42214.92399504,0.00016255,2]
[330786456,1719783048705,-17241.85053886,0.00016255,2]
[330786457,1719783048718,-151.0,0.00016255,2]
[330786458,1719783048728,-151.0,0.00016255,2]
[330786459,1719783048738,-151.0,0.00016255,2]
[330786460,1719783048749,-1000.0,0.00016258,2]
[330786461,1719783048759,-1078.37446589,0.0001627,2]
[330786462,1719783048768,-622.20331481,0.0001628,2]
[330786463,1719783048778,-1000.0,0.00016287,2]
[330786464,1719783048788,-1000.0,0.0001629,2]
[330786465,1719783048798,-1000.0,0.0001632,2]
[330786466,1719783048808,-300.0,0.0001633,2]
[330786467,1719783048817,-1000.0,0.00016338,2]
[330786468,1719783048827,-1000.0,0.00016338,2]
[330786469,1719783048836,-300.85777738,0.00016369,2]
[330786470,1719783048846,-1000.0,0.00016375,2]
[330786471,1719783048855,-1000.0,0.00016375,2]
[330786472,1719783048865,-1000.0,0.00016396,2]
[330786473,1719783048874,-334.0,0.000164,2]
[330786474,1719783048885,-1000.0,0.00016402,2]
[330786475,1719783048894,-500.0,0.00016438,2]
[330786476,1719783048904,-500.0,0.00016438,2]
[330786477,1719783048916,-500.0,0.00016438,2]
[330786478,1719783048925,-449.56998709,0.00016438,2]
[330786479,1719783048935,-293.0841251,0.00016493,2]
[330786480,1719783048945,-293.0841251,0.00016493,2]
[330786481,1719783048954,-293.0841251,0.00016493,2]
[330786482,1719783048964,-293.0841251,0.00016493,2]
[330786483,1719783048974,-293.1633704,0.00016493,2]
[330786484,1719783048984,-293.8344888,0.00016493,2]
[330786485,1719783048994,-420.0,0.00016522,2]
[330786486,1719783049003,-2000.0,0.00016526,2]
[330786487,1719783049014,-155.0,0.0001658,2]
[330786488,1719783049024,-500.0,0.00016665,2]
[330786489,1719783049034,-500.0,0.00016665,2]
[330786490,1719783049043,-3635.47,0.00016665,2]
[330786491,1719783049054,-3495.24,0.00016665,2]
[330786492,1719783049065,-1845.55,0.00016665,2]
[330786493,1719783049076,-1530.05,0.00016665,2]
[330786494,1719783049090,-500.0,0.00016665,2]
[330786495,1719783049099,-500.0,0.00016665,2]
[330786496,1719783049109,-500.0,0.00016665,2]
[330786497,1719783049119,-1644.28,0.00016665,2]
[330786498,1719783049128,-1571.28,0.00016665,2]
[330786499,1719783049139,-500.0,0.00016665,2]
[330786500,1719783049150,-14403.6,0.00016665,2]
[330786501,1719783049161,-1208.83,0.00016665,2]
[330786502,1719783049170,-5290.74,0.00016665,2]
[330786503,1719783049180,-151.0,0.00016665,2]
[330786504,1719783049189,-605.15,0.00016665,2]
[330786505,1719783049199,-13425.39,0.00016665,2]
[330786506,1719783049209,-500.0,0.00016665,2]
[330786507,1719783049218,-731.64,0.00016665,2]
[330786508,1719783049228,-638.35,0.00016665,2]
[330786509,1719783049238,-1820.86,0.00016665,2]
[330786510,1719783049249,-500.0,0.00016665,2]
[330786511,1719783049259,-5933.57,0.00016665,2]
[330786512,1719783049268,-500.0,0.00016665,2]
[330786513,1719783049278,-1288.91,0.00016665,2]
[330786514,1719783049287,-844.32,0.00016665,2]
[330786515,1719783049297,-823.32,0.00016665,2]
[330786516,1719783049307,-537.72207548,0.00016666,2]
[330786517,1719783049317,-620.03818299,0.00016666,2]
[330786518,1719783049326,-500.0,0.00016666,2]
[330786519,1719783049336,-500.0,0.00016666,2]
[330786520,1719783049346,-1299.91,0.00016666,2]
[330786521,1719783049355,-430.30691219,0.00016666,2]
[330786522,1719783049365,-500.0,0.00016666,2]
[330786523,1719783049374,-1640.19,0.00016666,2]
[330786524,1719783049383,-500.0,0.00016666,2]
[330786525,1719783049393,-500.0,0.00016666,2]
[330786526,1719783049403,-511.52,0.00016666,2]
[330786527,1719783049412,-1552.38,0.00016666,2]
[330786528,1719783049422,-500.0,0.00016666,2]
[330786529,1719783049431,-1917.77,0.00016666,2]
[330786530,1719783049440,-704.9,0.00016666,2]
[330786531,1719783049450,-1263.49,0.00016666,2]
[330786532,1719783049459,-500.0,0.00016666,2]
[330786533,1719783049469,-500.0,0.00016666,2]
[330786534,1719783049478,-500.0,0.00016666,2]
[330786535,1719783049487,-500.0,0.00016666,2]
[330786536,1719783049497,-500.0,0.00016666,2]
[330786537,1719783049507,-569.13,0.00016666,2]
[330786538,1719783049516,-500.0,0.00016666,2]
[330786539,1719783049525,-500.0,0.00016666,2]
[330786540,1719783049535,-743.11,0.00016666,2]
[330786541,1719783049546,-613.62,0.00016666,2]
[330786542,1719783049557,-500.0,0.00016666,2]
[330786543,1719783049566,-625.02,0.00016666,2]
[330786544,1719783049576,-528.68,0.00016666,2]
[330786545,1719783049585,-500.0,0.00016666,2]
[330786546,1719783049595,-675.23,0.00016666,2]
[330786547,1719783049604,-500.0,0.00016666,2]
[330786548,1719783049615,-1341.68,0.00016666,2]
[330786549,1719783049624,-158.86381151,0.00016666,2]
[330786550,1719783049633,-3046.41,0.00016666,2]
[330786551,1719783049643,-594.69,0.00016666,2]
[330786552,1719783049654,-500.0,0.00016666,2]
[330786553,1719783049663,-151.0,0.00016666,2]
[330786554,1719783049674,-715.47,0.00016666,2]
[330786555,1719783049684,-151.0,0.00016666,2]
[330786556,1719783049694,-151.0,0.00016666,2]
[330786557,1719783049705,-662.9,0.00016666,2]
[330786558,1719783049717,-1234.18,0.00016666,2]
[330786559,1719783049727,-500.0,0.00016666,2]
[330786560,1719783049737,-859.49,0.00016666,2]
[330786561,1719783049747,-500.0,0.00016666,2]
[330786562,1719783049757,-1472.78,0.00016666,2]
[330786563,1719783049767,-223.191982,0.00016666,2]
[330786564,1719783049776,-223.191982,0.00016666,2]
[330786565,1719783049790,-792.64,0.00016666,2]
[330786566,1719783049800,-500.0,0.00016666,2]
[330786567,1719783049813,-500.0,0.00016666,2]
[330786568,1719783049823,-640.46244967,0.00016666,2]
[330786569,1719783049931,-500.0,0.00016666,2]
[330786570,1719783049942,-1541.1,0.00016666,2]
[330786571,1719783049951,-500.0,0.00016666,2]
[330786572,1719783049962,-500.0,0.00016666,2]
[330786573,1719783049972,-757.71,0.00016666,2]
[330786574,1719783049982,-500.0,0.00016667,2]
[330786575,1719783049991,-500.0,0.00016667,2]
[330786576,1719783050001,-500.0,0.00016667,2]
[330786577,1719783050011,-500.0,0.00016667,2]
[330786578,1719783050020,-2023.65,0.00016667,2]
[330786579,1719783050031,-500.0,0.00016667,2]
[330786580,1719783050042,-500.0,0.00016667,2]
[330786581,1719783050052,-656.15,0.00016667,2]
[330786582,1719783050062,-611.98,0.00016667,2]
[330786583,1719783050072,-500.0,0.00016667,2]
[330786584,1719783050082,-270.95428017,0.00016667,2]
[330786585,1719783050092,-950.68,0.00016667,2]
[330786586,1719783050102,-329.61332008,0.00016667,2]
[330786587,1719783050111,-704.18,0.00016667,2]
[330786588,1719783050120,-500.0,0.00016667,2]